bitfinex/quotes_ETHUSD_20241119
["timestamp","ask_amount","ask_price","bid_price","bid_amount"]
[1732059253004,3.22104,3104.6,3104.1,1.12495]
[1732059253222,6.44131,3105.0,3104.4,0.8106]
[1732059253407,3.22078,3104.9,3104.4,0.8106]
[1732059253718,3.22086,3104.8,3104.4,0.8106]
[1732059254123,3.17086,3104.8,3104.4,0.8106]
[1732059255536,6.44132,3105.0,3104.4,1.13272]
[1732059255741,3.22062,3105.0,3104.4,1.13272]
[1732059255897,3.22076,3104.9,3104.4,1.13272]
[1732059256332,3.22076,3104.9,3104.4,0.8106]
[1732059257098,3.22113,3104.5,3104.4,0.8106]
[1732059257314,3.22113,3104.5,3104.0,0.8106]
[1732059257885,3.99904,3104.7,3104.0,0.8106]
[1732059258033,3.22094,3104.7,3104.1,0.32215]
[1732059258361,3.22094,3104.7,3104.1,0.64429]
[1732059258576,3.99887,3104.9,3104.2,0.32214]
[1732059258577,3.22077,3104.9,3104.2,0.32214]
[1732059258872,3.22059,3105.1,3104.6,0.8106]
[1732059259426,6.44117,3105.1,3104.6,0.8106]
[1732059259632,3.22058,3105.1,3104.6,0.8106]
[1732059259846,3.22063,3105.0,3104.6,0.8106]
[1732059260625,3.0,3105.2,3104.6,1.13269]
[1732059261257,3.0,3105.2,3104.7,0.32209]
[1732059261644,6.2204,3105.2,3104.7,0.32209]
[1732059263495,3.0,3105.2,3104.7,0.32209]
[1732059265245,3.22035,3105.3,3104.8,0.32207]
[1732059265866,3.22026,3105.4,3104.8,0.32207]
[1732059266081,3.22026,3105.4,3104.9,0.8132]
[1732059266304,3.22026,3105.4,3104.9,1.13526]
[1732059266590,3.22011,3105.5,3104.9,1.3132]
[1732059266798,6.44028,3105.5,3104.9,1.3132]
[1732059267092,3.22011,3105.5,3104.9,1.13526]
[1732059267465,3.2203,3105.3,3104.9,0.8132]
[1732059267885,3.22078,3104.9,3104.6,0.8132]
[1732059268082,3.22121,3104.5,3103.9,1.13537]
[1732059268363,3.22111,3104.6,3104.0,0.32216]
[1732059268870,3.22097,3104.7,3104.1,0.32215]
[1732059269190,3.22097,3104.7,3104.3,0.8132]
[1732059269906,3.22109,3104.6,3104.3,0.8132]
[1732059270413,3.22119,3104.5,3104.3,0.8132]
[1732059270765,3.22096,3104.7,3104.3,0.8132]
[1732059271114,3.22123,3104.4,3104.0,0.8132]
[1732059273504,3.22106,3104.6,3104.0,0.8132]
[1732059273817,3.22113,3104.5,3104.0,0.8132]
[1732059274694,3.22114,3104.5,3104.0,0.8132]
[1732059275770,3.22124,3104.4,3104.0,0.8132]
[1732059278009,3.22151,3104.2,3104.0,0.8132]
[1732059278219,3.22151,3104.2,3103.5,0.8132]
[1732059278984,3.22101,3104.7,3103.2,0.8132]
[1732059278985,3.22203,3103.7,3103.2,0.8132]
[1732059279979,3.9901,3103.9,3103.2,1.13544]
[1732059280413,3.22192,3103.8,3103.2,1.13544]
[1732059281207,3.22193,3103.8,3103.2,1.13543]
[1732059282220,3.22203,3103.7,3103.2,0.8132]
[1732059282711,3.22193,3103.8,3103.2,1.13544]
[1732059283215,3.22197,3103.7,3103.2,1.13544]
[1732059286111,3.22186,3103.8,3103.3,0.32223]
[1732059286346,3.22186,3103.8,3103.2,1.13544]
[1732059288061,3.22196,3103.7,3103.2,1.13544]
[1732059289063,0.7658,3104.1,3103.2,1.13544]
[1732059289064,3.22169,3104.0,3103.3,0.32223]
[1732059289274,3.22169,3104.0,3103.4,1.13612]
[1732059291270,6.22154,3104.1,3103.6,0.3222]
[1732059291473,3.22127,3104.4,3103.5,0.8139]
[1732059291659,3.22139,3104.3,3103.7,0.32218]
[1732059293390,3.22127,3104.4,3103.9,0.8139]
[1732059294872,0.7658,3104.6,3103.9,0.8139]
[1732059294873,3.22135,3104.3,3103.9,0.8139]
[1732059296678,3.22116,3104.5,3103.9,0.8139]
[1732059296863,3.22096,3104.7,3104.1,0.32215]
[1732059297367,3.22109,3104.6,3104.0,0.32215]
[1732059298066,3.22115,3104.5,3104.0,0.32215]
[1732059300177,6.44196,3104.7,3104.0,0.32215]
[1732059300389,3.22104,3104.6,3104.0,0.32215]
[1732059302191,3.22104,3104.6,3104.0,0.6443]
[1732059302399,3.22082,3104.8,3104.3,0.8139]
[1732059302699,3.22092,3104.7,3104.3,0.8139]
[1732059304580,3.22104,3104.6,3104.3,0.8139]
[1732059305309,3.22123,3104.4,3103.6,0.8139]
[1732059305492,3.22123,3104.4,3103.7,0.32218]
[1732059305861,3.22144,3104.2,3103.7,0.32218]
[1732059306100,6.44297,3104.2,3103.6,0.8139]
[1732059306403,3.22144,3104.2,3103.6,1.1361]
[1732059307006,3.22144,3104.2,3103.7,0.32219]
[1732059307221,3.22144,3104.2,3103.6,0.8139]
[1732059307723,3.22144,3104.2,3103.6,1.1361]
[1732059308678,3.22168,3104.0,3103.6,0.8139]
[1732059309317,3.22181,3103.9,3103.6,0.8139]
[1732059310849,3.22189,3103.8,3103.6,0.8139]
[1732059311132,3.22189,3103.8,3103.2,0.32224]
[1732059311133,3.22189,3103.8,3103.3,0.7708]
[1732059311353,6.44384,3103.8,3103.3,0.7708]
[1732059311522,3.22189,3103.8,3103.3,0.7708]
[1732059315565,3.22196,3103.7,3103.3,0.7708]
[1732059316851,3.2217,3104.0,3103.3,0.7708]
[1732059317152,3.22191,3103.8,3103.3,0.7708]
[1732059317363,0.8273,3104.1,3103.4,0.32222]
[1732059317520,3.22172,3104.0,3103.4,0.32222]
[1732059318348,6.44299,3104.2,3103.6,0.3222]
[1732059318533,3.22147,3104.2,3103.7,0.7708]
[1732059319747,3.22144,3104.3,3103.7,0.7708]
[1732059319948,3.22144,3104.3,3103.7,1.09299]
[1732059320460,3.22147,3104.2,3103.7,0.7708]
[1732059321725,3.22125,3104.4,3103.7,0.7708]
[1732059321926,3.22125,3104.4,3103.8,0.32218]
[1732059322339,3.2214,3104.3,3103.7,0.7708]
[1732059322558,3.2214,3104.3,3103.7,1.09299]
[1732059322882,3.22103,3104.6,3104.0,0.32215]
[1732059323025,4.0482,3104.8,3104.1,1.09295]
[1732059323230,3.2209,3104.8,3104.3,0.32213]
[1732059323928,0.8273,3105.0,3104.4,0.7708]
[1732059324138,3.22075,3104.9,3104.4,0.7708]
[1732059324969,3.22075,3104.9,3104.4,1.09292]
[1732059325276,0.8273,3105.2,3104.4,0.7708]
[1732059325481,3.22063,3105.0,3104.5,0.3221]
[1732059325689,4.04777,3105.2,3104.6,0.3221]
[1732059326003,3.22052,3105.1,3104.6,0.3221]
[1732059326491,3.22052,3105.1,3104.4,1.09291]
[1732059326783,3.22062,3105.0,3104.4,1.09291]
[1732059331867,6.44132,3105.0,3104.4,1.09291]
[1732059332285,3.22062,3105.0,3104.4,1.09291]
[1732059334502,3.22073,3104.9,3104.4,1.09291]
[1732059334709,3.22057,3105.1,3104.5,1.099]
[1732059335261,3.22045,3105.2,3104.7,0.32208]
[1732059335504,3.22023,3105.4,3104.8,0.7769]
[1732059335692,3.22023,3105.4,3104.8,1.09898]
[1732059335891,3.22002,3105.6,3104.9,0.32206]
[1732059336102,3.22002,3105.6,3105.1,1.09895]
[1732059336407,3.21982,3105.8,3105.1,1.09895]
[1732059336706,3.21991,3105.7,3105.1,1.42099]
[1732059336862,3.99532,3106.0,3105.2,1.09893]
[1732059337066,3.21978,3105.8,3105.2,1.09893]
[1732059337672,3.21975,3105.9,3105.3,0.32202]
[1732059337859,3.21975,3105.9,3105.4,0.7769]
[1732059338088,3.21962,3106.0,3105.4,0.7769]
[1732059338275,3.21962,3106.0,3105.4,1.09891]
[1732059338463,3.21969,3105.9,3105.4,1.09891]
[1732059339007,3.0,3106.2,3105.5,0.322]
[1732059339008,9.43883,3106.2,3105.5,0.322]
[1732059339164,9.43883,3106.2,3105.6,1.11429]
[1732059339165,3.21937,3106.2,3105.6,1.11429]
[1732059339502,3.0,3106.1,3105.6,0.7923]
[1732059339715,3.21987,3105.8,3105.6,0.7923]
[1732059340003,3.21987,3105.8,3105.7,0.07546726]
[1732059340202,3.98872,3106.0,3105.6,0.7923]
[1732059340781,7.20839,3106.0,3105.6,0.7923]
[1732059341184,3.21979,3105.8,3105.6,0.7923]
[1732059341484,7.20839,3106.0,3105.6,0.7923]
[1732059341870,3.21962,3106.0,3105.6,0.7923]
[1732059344101,3.0,3106.1,3105.6,1.11429]
[1732059345412,6.21947,3106.1,3105.6,1.11429]
[1732059345819,3.0,3106.1,3105.6,1.11429]
[1732059346817,3.21958,3106.0,3105.6,0.7923]
[1732059347187,3.0,3106.1,3105.6,0.7923]
[1732059347379,6.21953,3106.1,3105.6,0.7923]
[1732059347715,3.0,3106.1,3105.6,0.7923]
[1732059347920,3.2199,3105.7,3105.0,0.7923]
[1732059348080,3.21972,3105.9,3105.0,0.7923]
[1732059348289,3.21972,3105.9,3104.9,0.32206]
[1732059348290,3.21985,3105.8,3105.2,1.11433]
[1732059348488,3.21989,3105.7,3105.2,0.7923]
[1732059348707,3.21957,3106.0,3105.2,0.7923]
[1732059348894,3.2203,3105.3,3105.2,0.7923]
[1732059349113,3.2203,3105.3,3104.8,0.7923]
[1732059349798,3.22042,3105.2,3104.8,0.7923]
[1732059351523,3.2204,3105.2,3104.8,0.7923]
[1732059351731,2.11038987,3105.6,3104.8,0.7923]
[1732059351887,3.22068,3105.0,3104.8,0.7923]
[1732059352239,3.22052,3105.1,3104.8,0.7923]
[1732059352526,3.22064,3105.0,3104.8,0.7923]
[1732059352680,3.22064,3105.0,3104.4,0.32212]
[1732059352681,3.22064,3105.0,3104.5,0.7937]
[1732059353634,3.22064,3105.0,3104.6,0.07278483]
[1732059353983,3.22064,3105.0,3104.5,0.7937]
[1732059354189,6.44134,3105.0,3104.5,0.7937]
[1732059354422,3.22081,3104.9,3104.6,0.07284476]
[1732059354799,3.22081,3104.9,3104.5,0.7937]
[1732059354998,3.22084,3104.8,3104.5,0.7937]
[1732059355416,6.44159,3104.9,3104.5,0.7937]
[1732059355734,3.22078,3104.9,3104.5,0.7937]
[1732059356257,3.22054,3105.1,3104.5,1.11581]
[1732059356407,3.22054,3105.1,3104.5,0.7937]
[1732059356736,3.22054,3105.1,3104.5,1.11581]
[1732059356937,6.44114,3105.1,3104.5,1.11581]
[1732059357139,3.99455,3105.3,3104.5,1.11581]
[1732059357443,3.22044,3105.2,3104.6,0.7812]
[1732059358161,3.22044,3105.2,3104.7,0.32209]
[1732059359007,3.22044,3105.2,3104.6,0.7812]
[1732059359203,3.22072,3104.9,3104.6,0.7812]
[1732059359573,3.22083,3104.8,3104.6,0.7812]
[1732059361248,3.22092,3104.7,3104.6,0.7812]
[1732059361542,3.22083,3104.8,3104.6,0.7812]
[1732059363962,3.22045,3105.2,3104.6,0.7812]
[1732059364155,0.7742,3105.5,3104.6,1.10329]
[1732059364449,3.22051,3105.1,3104.7,0.07291236]
[1732059364650,3.22051,3105.1,3104.6,1.10329]
[1732059365017,3.22064,3105.0,3104.6,0.7812]
[1732059365229,1.34128987,3105.8,3105.1,0.7812]
[1732059365230,3.21997,3105.7,3105.1,0.7812]
[1732059365436,3.21997,3105.7,3105.2,0.07291236]
[1732059365806,3.2197,3105.9,3105.2,0.32203]
[1732059366001,3.21979,3105.8,3105.2,0.32203]
[1732059366442,3.21994,3105.7,3105.3,0.7812]
[1732059368530,6.43992,3105.7,3105.3,0.7812]
[1732059368737,6.4399,3105.7,3105.3,0.7812]
[1732059368937,3.2201,3105.5,3105.3,0.7812]
[1732059369140,0.7852,3105.5,3104.8,0.7872]
[1732059369316,3.22045,3105.2,3104.8,0.7872]
[1732059369509,3.22032,3105.3,3104.9,0.07285624]
[1732059369707,3.22032,3105.3,3104.8,0.7872]
[1732059370213,3.22032,3105.3,3104.9,0.07285624]
[1732059370411,3.22032,3105.3,3104.8,1.10927]
[1732059370667,4.00508,3105.8,3104.9,0.39492624]
[1732059370868,3.21998,3105.6,3105.1,0.32204]
[1732059371043,3.21998,3105.6,3105.2,0.7872]
[1732059371426,3.21988,3105.8,3105.2,1.10923]
[1732059371665,3.21988,3105.8,3105.3,0.32202]
[1732059371839,3.0,3105.9,3105.5,0.322]
[1732059372035,3.0,3105.9,3105.6,0.7872]
[1732059372240,0.7852,3106.2,3105.6,0.7872]
[1732059372241,3.21948,3106.1,3105.6,0.7872]
[1732059372466,3.0,3106.0,3105.6,0.7872]
[1732059373237,6.43904,3106.1,3105.6,0.7872]
[1732059373443,3.21948,3106.1,3105.6,0.7872]
[1732059373979,3.0,3106.2,3105.6,1.10919]
[1732059374738,3.0,3106.2,3105.7,0.32198]
[1732059375564,6.21937,3106.2,3105.7,0.32198]
[1732059376129,3.21937,3106.2,3105.7,0.32198]
[1732059376434,3.21923,3106.4,3105.8,1.10917]
[1732059376772,3.21909,3106.5,3105.8,0.7872]
[1732059376773,3.21933,3106.3,3105.8,0.7872]
[1732059378279,3.21937,3106.2,3105.8,0.7872]
[1732059378648,6.21924,3106.4,3105.8,1.10917]
[1732059379143,6.21924,3106.4,3105.9,0.32195]
[1732059379144,3.0,3106.4,3105.9,0.32195]
[1732059380280,6.21918,3106.4,3105.8,0.7872]
[1732059380442,6.21918,3106.4,3105.8,1.10917]
[1732059381379,3.21902,3106.6,3105.9,0.32195]
[1732059381594,3.21902,3106.6,3106.0,0.7813]
[1732059382151,3.21902,3106.6,3106.0,1.10325]
[1732059382357,3.21905,3106.5,3106.0,0.7813]
[1732059382994,3.219,3106.6,3106.0,1.10325]
[1732059384100,0.8156,3106.5,3106.0,0.7813]
[1732059384302,4.03472,3106.5,3106.1,0.07091036]
[1732059384599,0.8156,3106.7,3106.0,0.7813]
[1732059384755,4.03449,3106.7,3106.0,0.7813]
[1732059384960,3.21912,3106.5,3106.0,0.7813]
[1732059385163,4.03449,3106.7,3106.0,1.10324]
[1732059385507,3.21897,3106.6,3106.0,1.10324]
[1732059386361,3.21897,3106.6,3106.0,1.42519]
[1732059386561,3.21897,3106.6,3106.0,1.10324]
[1732059386785,3.21897,3106.6,3106.0,1.10325]
[1732059387062,3.21906,3106.5,3106.0,1.10325]
[1732059387400,3.21895,3106.6,3106.0,1.10325]
[1732059387562,3.21895,3106.6,3106.0,1.4252]
[1732059387761,3.0,3106.5,3106.0,1.4252]
[1732059387965,3.0,3106.5,3106.0,1.10325]
[1732059388673,3.0,3106.5,3106.1,0.32194]
[1732059389701,3.21895,3106.6,3106.0,0.7813]
[1732059390015,3.21895,3106.6,3106.0,1.10325]
[1732059390325,3.21906,3106.5,3106.0,1.10325]
[1732059391082,3.21895,3106.6,3106.0,1.10325]
[1732059391629,3.21908,3106.5,3106.0,0.7813]
[1732059391807,3.2192,3106.4,3106.0,0.7813]
[1732059392478,3.21895,3106.6,3106.0,0.7813]
[1732059392881,3.21874,3106.8,3106.0,0.7813]
[1732059393116,3.21939,3106.2,3106.0,0.7813]
[1732059393318,3.21922,3106.4,3106.0,0.7813]
[1732059393696,3.21927,3106.3,3106.0,0.7813]
[1732059394136,2.15688987,3106.5,3105.4,0.7826]
[1732059394296,3.21936,3106.2,3105.4,0.7826]
[1732059395339,3.21936,3106.2,3105.5,0.07083389]
[1732059395538,3.21936,3106.2,3105.6,0.7826]
[1732059397229,3.0,3106.4,3105.6,0.7826]
[1732059397415,3.21926,3106.3,3105.6,0.7826]
[1732059398149,3.21938,3106.2,3105.6,0.7826]
[1732059401420,3.2196,3106.0,3105.6,0.7826]
[1732059401961,0.7698,3106.3,3105.6,0.7826]
[1732059401962,3.21973,3105.9,3105.6,0.7826]
[1732059407034,3.21952,3106.1,3105.6,0.7826]
[1732059407415,3.21965,3106.0,3105.6,0.7826]
[1732059410172,3.21968,3105.9,3105.6,0.7826]
[1732059412227,3.21952,3106.1,3105.6,0.7826]
[1732059412555,3.21905,3106.5,3105.6,0.7826]
[1732059412757,8.33008987,3106.6,3105.6,0.7826]
[1732059413437,3.21954,3106.1,3105.6,0.7826]
[1732059413630,3.21958,3106.0,3105.6,0.7826]
[1732059414073,3.21954,3106.1,3105.6,0.7826]
[1732059414536,6.43911,3106.1,3105.6,0.7826]
[1732059415351,3.21958,3106.0,3105.6,0.7826]
[1732059415981,3.21947,3106.1,3105.6,0.7826]
[1732059416284,3.21949,3106.1,3105.6,0.7826]
[1732059417241,3.2196,3106.0,3105.6,0.7826]
[1732059420183,3.21952,3106.1,3105.6,0.7826]
[1732059421171,3.21957,3106.0,3105.6,0.7826]
[1732059421366,3.2192,3106.4,3105.6,0.7826]
[1732059421681,3.7698,3106.6,3105.6,0.7826]
[1732059421682,3.21947,3106.1,3105.6,0.7826]
[1732059422046,0.8281,3106.2,3105.6,0.7826]
[1732059422248,3.21977,3105.9,3105.6,0.7826]
[1732059423370,4.04749,3106.2,3104.7,0.8188]
[1732059423586,3.21991,3105.7,3104.7,0.8188]
[1732059423893,3.21999,3105.6,3104.8,0.07089891]
[1732059424094,3.21999,3105.6,3104.9,0.8188]
[1732059424266,3.21999,3105.6,3105.0,0.07089891]
[1732059424471,3.22023,3105.4,3105.0,0.07089891]
[1732059424997,3.22037,3105.3,3105.0,0.07089891]
[1732059425492,3.22037,3105.3,3104.9,0.8188]
[1732059425692,3.2201,3105.5,3104.9,0.8188]
[1732059425892,3.22,3105.6,3104.9,0.8188]
[1732059426280,3.2202,3105.4,3105.0,0.07095374]
[1732059426597,3.2202,3105.4,3104.9,0.8188]
[1732059427094,3.22,3105.6,3104.9,0.8188]
[1732059427317,3.22016,3105.5,3104.9,0.8188]
[1732059428196,3.22,3105.6,3104.9,0.8188]
[1732059428402,3.2201,3105.5,3104.9,0.8188]
[1732059428552,3.2201,3105.5,3105.0,0.07095374]
[1732059428754,3.22,3105.6,3104.9,0.8188]
[1732059428755,3.2202,3105.4,3104.9,0.8188]
[1732059429396,3.22,3105.6,3104.9,0.8188]
[1732059429603,3.2201,3105.5,3104.9,0.8188]
[1732059429804,3.21996,3105.7,3104.9,0.8188]
[1732059431761,3.21996,3105.7,3104.9,0.88320598]
[1732059432099,3.0,3105.8,3105.0,0.07101237]
[1732059432255,3.0,3105.8,3104.6,0.06440466]
[1732059432256,3.0,3105.8,3105.1,0.8174]
[1732059432461,0.8043,3106.0,3105.1,0.8174]
[1732059432462,3.21998,3105.7,3105.1,0.8174]
[1732059432689,3.22,3105.6,3105.1,0.8174]
[1732059433098,3.21998,3105.7,3105.1,0.8174]
[1732059433407,3.22009,3105.5,3105.1,0.8174]
[1732059435111,0.8043,3105.7,3105.1,0.8174]
[1732059435263,3.22041,3105.2,3104.6,0.8174]
[1732059436414,3.22022,3105.4,3104.7,0.07101364]
[1732059436586,3.22022,3105.4,3104.8,0.8174]
[1732059436962,3.22036,3105.3,3104.8,0.8174]
[1732059437156,3.2204,3105.2,3104.9,0.07101364]
[1732059437360,3.22002,3105.6,3104.8,0.8174]
[1732059437602,3.22002,3105.6,3105.1,0.8174]
[1732059439019,3.21996,3105.7,3105.1,0.8174]
[1732059439516,3.0,3105.7,3105.1,0.8174]
[1732059439887,0.8043,3105.9,3105.1,0.8174]
[1732059440088,3.0,3105.7,3105.1,0.8174]
[1732059440778,6.21989,3105.7,3105.1,0.8174]
[1732059441291,3.22006,3105.6,3105.1,0.8174]
[1732059442320,3.0,3105.7,3105.1,0.8174]
[1732059442876,6.21995,3105.7,3105.1,0.8174]
[1732059444823,3.0,3105.7,3105.1,0.8174]
[1732059445117,3.0,3105.9,3105.1,0.8174]
[1732059445415,3.0,3106.1,3105.1,0.8174]
[1732059445801,3.21963,3106.0,3105.1,0.8174]
[1732059446034,3.0,3105.9,3105.1,0.8174]
[1732059446236,3.97521,3106.2,3105.1,0.8174]
[1732059446558,6.21955,3106.1,3105.1,0.8174]
[1732059447711,3.0,3106.1,3105.1,0.8174]
[1732059447911,3.0,3105.9,3105.1,0.8174]
[1732059449953,6.21968,3105.9,3105.1,0.8174]
[1732059451709,3.21979,3105.8,3105.1,0.8174]
[1732059451914,6.21968,3105.9,3105.1,0.8174]
[1732059454543,6.21968,3105.9,3104.2,3.46935561]
[1732059454544,0.7839,3105.4,3104.2,0.8251]
[1732059454733,3.22068,3105.0,3104.2,0.8251]
[1732059456836,3.0,3105.1,3104.2,0.8251]
[1732059457034,3.7839,3105.4,3104.2,0.8251]
[1732059457294,3.0,3105.2,3104.2,0.8251]
[1732059457860,3.0,3105.3,3104.2,0.8251]
[1732059458427,3.22002,3105.6,3104.2,0.8251]
[1732059458639,3.22002,3105.6,3104.4,0.8251]
[1732059459185,3.22002,3105.6,3104.5,0.88353193]
[1732059459666,3.22002,3105.6,3104.5,0.8172]
[1732059461377,3.7839,3105.7,3104.5,0.8172]
[1732059462284,3.21982,3105.8,3104.5,0.8172]
[1732059462445,3.8227,3105.9,3104.5,0.8172]
[1732059462786,3.0,3105.9,3104.5,0.8172]
[1732059463143,3.0,3106.1,3104.5,0.88160593]
[1732059463344,3.0,3106.1,3104.6,0.06629262]
[1732059463575,3.0,3106.1,3104.6,0.8172]
[1732059465243,3.0,3105.9,3104.8,0.8172]
[1732059465728,3.0,3105.9,3104.9,0.06627361]
[1732059465934,3.0,3105.9,3104.9,0.8172]
[1732059466806,3.0,3105.9,3105.1,0.8172]
[1732059467392,3.0,3106.1,3105.1,0.8172]
[1732059467634,6.21948,3106.1,3105.1,0.8172]
[1732059472798,3.21969,3105.9,3105.1,0.8172]
[1732059473326,2.90739826,3106.0,3105.1,0.8172]
[1732059473634,3.22001,3105.6,3105.1,0.8172]
[1732059473842,3.2201,3105.5,3105.1,0.8172]
[1732059475700,3.2201,3105.5,3104.2,0.06441189]
[1732059475701,3.2201,3105.5,3104.3,0.8172]
[1732059476006,3.0,3105.4,3104.3,0.8172]
[1732059476407,0.8227,3105.1,3104.3,0.8172]
[1732059476834,4.04321,3105.1,3104.3,0.8172]
[1732059479814,0.8227,3105.1,3104.3,0.8172]
[1732059480046,3.22041,3105.2,3104.3,0.8172]
[1732059480379,6.22032,3105.3,3104.3,0.8172]
[1732059481572,3.0,3105.4,3104.3,0.8172]
[1732059481869,3.0,3105.4,3104.4,0.8002]
[1732059485340,3.2202,3105.4,3104.4,0.8002]
[1732059485572,0.8054,3105.5,3104.4,0.8002]
[1732059485885,3.0,3105.4,3104.4,0.8002]
[1732059486484,6.22025,3105.4,3104.4,0.8002]
[1732059486650,3.0,3105.4,3104.4,0.8002]
[1732059486855,3.0,3105.4,3104.6,0.8002]
[1732059488054,3.22049,3105.2,3104.6,0.8002]
[1732059488517,3.22061,3105.0,3104.6,0.8002]
[1732059490679,6.44098,3105.2,3104.6,0.8002]
[1732059490861,3.22056,3105.1,3104.6,0.8002]
[1732059492060,3.22049,3105.2,3104.6,0.8002]
[1732059494055,3.0,3105.3,3104.6,0.8002]
[1732059495087,3.0,3105.5,3104.6,0.8002]
[1732059495243,6.22009,3105.5,3104.6,0.8002]
[1732059495446,3.79,3105.7,3104.6,0.8002]
[1732059495641,7.00997,3105.7,3104.6,0.8002]
[1732059496369,3.79,3105.7,3104.7,0.06603769]
[1732059496555,3.0,3105.7,3104.8,0.8017]
[1732059500475,6.21969,3105.9,3104.8,0.8017]
[1732059500982,6.21953,3106.1,3104.8,0.8017]
[1732059501363,3.2196,3106.0,3104.8,0.8017]
[1732059501569,3.0,3105.9,3104.8,0.8017]
[1732059501955,6.21948,3106.1,3104.8,0.8017]
[1732059503097,3.0,3106.2,3104.8,0.8017]
[1732059503245,3.0,3106.1,3104.8,0.8017]
[1732059503452,7.22841,3106.4,3104.8,0.8017]
[1732059503646,3.0,3106.3,3104.8,0.8017]
[1732059503950,3.21917,3106.4,3104.8,0.8017]
[1732059504778,3.21917,3106.4,3105.0,0.8182]
[1732059504974,3.21895,3106.6,3105.0,0.8182]
[1732059505160,3.21895,3106.6,3105.1,0.06588685]
[1732059505361,3.0,3106.5,3105.2,0.8182]
[1732059506904,3.21895,3106.6,3105.2,0.8182]
[1732059507203,3.21895,3106.6,3105.3,0.06586277]
[1732059507406,3.21895,3106.6,3104.9,0.07439695]
[1732059507407,3.21895,3106.6,3105.4,0.8182]
[1732059507561,3.21895,3106.6,3104.9,3.07439695]
[1732059507562,3.21895,3106.6,3105.5,0.06586277]
[1732059507768,3.21895,3106.6,3105.6,0.8182]
[1732059508167,3.21895,3106.6,3105.7,0.06586277]
[1732059508491,3.21895,3106.6,3105.8,0.8182]
[1732059509300,3.0,3106.9,3105.8,0.8182]
[1732059511403,3.0,3106.7,3105.8,0.8182]
[1732059511605,3.0,3106.9,3105.8,0.8182]
[1732059512076,6.2187,3106.9,3105.8,0.8182]
[1732059513207,6.99901,3107.1,3105.8,0.8182]
[1732059514794,3.0,3107.2,3105.8,0.8182]
[1732059515094,3.0,3107.1,3105.8,0.8182]
[1732059515404,3.7805,3107.3,3105.9,0.06566258]
[1732059515405,3.0,3107.3,3105.9,0.06566258]
[1732059515709,3.0,3107.3,3106.0,0.8182]
[1732059516002,3.0,3107.3,3106.1,0.06566258]
[1732059516181,3.0,3107.3,3106.2,0.8182]
[1732059516806,6.21823,3107.3,3106.2,0.8182]
[1732059517879,3.0,3107.1,3106.2,0.8182]
[1732059518286,6.21845,3107.1,3106.2,0.8182]
[1732059518484,3.99921,3106.9,3106.2,0.8182]
[1732059519005,3.21886,3106.7,3106.2,0.8182]
[1732059521109,3.0,3106.8,3106.2,0.8182]
[1732059521338,6.21879,3106.8,3106.2,0.8182]
[1732059521836,3.0,3106.8,3106.2,0.8182]
[1732059522238,3.0,3107.0,3106.2,0.8182]
[1732059523030,6.21857,3107.0,3106.2,0.8182]
[1732059526127,3.0,3107.1,3106.2,0.8182]
[1732059526324,3.0,3107.3,3106.2,0.8182]
[1732059527045,4.00959,3107.4,3106.2,0.8182]
[1732059527353,6.4364,3107.4,3106.2,0.8182]
[1732059527636,3.21825,3107.3,3106.2,0.8182]
[1732059528545,3.0,3107.2,3106.2,0.8182]
[1732059530210,3.21834,3107.2,3106.2,0.8182]
[1732059530409,3.0,3107.1,3106.2,0.8182]
[1732059530751,3.21777,3107.8,3106.4,0.822]
[1732059530921,3.21752,3108.0,3106.4,0.822]
[1732059531120,3.21752,3108.0,3106.6,0.822]
[1732059531650,6.43512,3108.0,3106.7,0.06561445]
[1732059531852,3.0,3107.9,3106.8,0.822]
[1732059532511,6.2176,3107.9,3106.8,0.822]
[1732059533353,3.21733,3108.2,3106.8,0.822]
[1732059533354,3.0,3108.0,3106.8,0.822]
[1732059533844,3.0,3108.1,3106.8,0.822]
[1732059534048,3.21733,3108.2,3106.8,0.822]
[1732059534348,3.21733,3108.2,3106.5,0.07436448]
[1732059534349,3.2171,3108.4,3106.9,0.82646449]
[1732059534723,3.21719,3108.3,3107.1,0.7621]
[1732059535066,3.2171,3108.4,3107.1,0.7621]
[1732059535260,3.2169,3108.6,3107.2,0.06561445]
[1732059535452,3.2169,3108.6,3107.2,0.82771445]
[1732059535624,3.217,3108.5,3107.2,0.82771445]
[1732059536223,3.217,3108.5,3107.2,0.7621]
[1732059536447,3.0,3108.4,3107.3,0.0654967]
[1732059536643,3.0,3108.4,3107.4,0.7621]
[1732059538790,3.21688,3108.6,3107.4,0.7621]
[1732059539082,3.21759,3108.0,3107.4,0.7621]
[1732059540281,3.21774,3107.8,3107.4,0.7621]
[1732059540439,3.21782,3107.7,3107.4,0.7621]
[1732059540875,3.21802,3107.5,3107.4,0.7621]
[1732059541090,3.21802,3107.5,3106.3,0.7621]
[1732059541291,3.21791,3107.6,3106.3,0.7621]
[1732059541845,3.21807,3107.5,3106.4,0.82744858]
[1732059544067,3.0,3107.8,3106.6,0.82748023]
[1732059544471,3.0,3107.8,3106.6,0.7621]
[1732059544798,6.21771,3107.8,3106.6,0.7621]
[1732059544998,3.0,3107.8,3106.6,0.7621]
[1732059546056,3.0,3108.0,3106.6,0.7621]